Cogmind - Beta 13 @@@ ROGUE MODE // 2024.05.22 @ 18:17:42 Player: Skergy Result: Destroyed by 56-N9E(R) with Subdweller Laser Performance ------------- Evolutions (0) 0 Regions Visited (3) 600 Robots Destroyed (13) 65 Value Destroyed (285) 285 Prototype IDs (0) 0 Alien Tech Used (0) 0 Bonus (3) 3 TOTAL SCORE: 953 Bonus ------- Follower Combat Kills 21 Friendly Fire -18 Cogmind --------- Core Integrity 0/250 Matter 300/300 Energy 125/125 System Corruption 0% Temperature Cool (6) Movement Walking (190) Ox1 Location -10/Subcaves Parts ------- > --- POWER (1) -------- Light Ion Engine > --- PROPULSION (2) --- Aluminum Leg Aluminum Leg > --- UTILITY (2) ------ Scrap Shield > --- WEAPON (2) ------- Light Assault Rifle > --- INVENTORY (5) ---- Light Ion Engine Light Treads Aluminum Leg Sensor Array Mining Laser Peak State ------------ > --- POWER ------------ Light Nuclear Core > --- PROPULSION ------- Aluminum Leg Aluminum Leg > --- UTILITY ---------- Small Storage Unit Sensor Array > --- WEAPON ----------- Assault Rifle Rocket Launcher > --- INVENTORY -------- Ion Engine Light Ion Engine Light Treads Light Treads Aluminum Leg Aluminum Leg Aluminum Leg Light Assault Rifle [Rating: 10] Favorites ----------- Power Light Nuclear Core Engine Light Ion Engine Power Core Light Nuclear Core Propulsion Aluminum Leg Leg Aluminum Leg Utility Small Storage Unit Device Sensor Array Storage Small Storage Unit Processor Visual Processing Unit Protection Scrap Shield Weapon Light Assault Rifle Ballistic Gun Light Assault Rifle Launcher Rocket Launcher Special Weapon Flamer Build | -11 -10 -10 -10 ------- Run | Yrd Mat Min Sub Slots Evolved . | . . . . Power . | . . . . Propulsion . | . . . . Utility . | . . . . Weapon . | . . . . Parts Attached 25 | 6 10 4 5 Power 4 | 1 2 . 1 Engine 3 | 1 1 . 1 Core 1 | . 1 . . Reactor . | . . . . Propulsion 10 | 2 5 1 2 Treads . | . . . . Leg 10 | 2 5 1 2 Wheel . | . . . . Hover . | . . . . Flight . | . . . . Utility 4 | 1 2 . 1 Device 1 | . 1 . . Storage 1 | 1 . . . Processor 1 | . 1 . . Hackware . | . . . . Protection 1 | . . . 1 Artifact . | . . . . Weapon 7 | 2 1 3 1 Energy Gun . | . . . . Energy Cannon . | . . . . Ballistic Gun 4 | 2 1 1 . Ballistic Cannon . | . . . . Launcher 2 | . . 2 . Special Weapon 1 | . . . 1 Impact Weapon . | . . . . Slashing Weapon . | . . . . Piercing Weapon . | . . . . Special Melee Weapon . | . . . . Unidentified Prototypes . | . . . . Parts Lost 4 | . . 1 3 Power 1 | . . . 1 Propulsion . | . . . . Utility . | . . . . Weapon 3 | . . 1 2 Highest Loss Streak 2 | . . 1 2 To Critical Strikes . | . . . . Average Slot Usage (%) 95 | . 93 99 89 Engine 3 | . 8 . 5 Core 10 | . 5 14 6 Leg 28 | . 28 28 28 Device 10 | . 7 14 7 Storage 12 | . 14 14 8 Protection 1 | . . . 5 Ballistic Gun 21 | . 28 21 14 Launcher 4 | . . 5 6 Special Weapon 1 | . . . 6 Naked Turns . | . . . . Heaviest Build 24 | 11 14 17 24 Greatest Support 20 | 20 20 20 20 Greatest Overweight (x) 3 | 3 . . 1 Average Overweight (x) . | . . . . Largest Inventory Capacity 8 | 8 8 8 8 Average Capacity 7 | 7 8 8 6 Most Carried 8 | 6 8 8 8 Average Carried 7 | 4 7 7 6 Final Capacity 8 | 8 8 8 5 Final Carried 8 | 6 8 8 5 Class Distribution -------------------- 100% | Mutant Dominant Class ---------------- Mutant | -10/Materials Mutant | -10/Mines Mutant | -10/Subcaves Resources | -11 -10 -10 -10 ----------- Run | Yrd Mat Min Sub Matter Collected 639 | 174 236 176 53 Remotely . | . . . . Salvage Created 329 | . 261 68 . Parts 29 | . 23 6 . Haulers Intercepted . | . . . . Recyclers Shooed . | . . . . Parts Field Recycled . | . . . . Retrieved Matter . | . . . . Parts Self-Destructed 7 | . . . 7 Prevented . | . . . . Kills | -11 -10 -10 -10 ------- Run | Yrd Mat Min Sub Combat Hostiles Destroyed 11 | . 7 4 . Guns 10 | . 7 3 . AOE 1 | . . 1 . Classes Destroyed 3 | . 3 . . Watcher 2 | . 2 . . Swarmer 6 | . 3 3 . Grunt 5 | . 4 1 . Best Kill Streak 3 | . 3 2 . Combat Bots Only 3 | . 3 2 . Max Kills in Single Turn 1 | . 1 1 . Gunslinging . | . . . . Exploded 1 | . . 1 . Melee . | . . . . Uniques/NPCs Destroyed . | . . . . Combat | -11 -10 -10 -10 -------- Run | Yrd Mat Min Sub Hostile Shots Fired 109 | . 56 31 22 Missed 28 | . 15 7 6 Damage Taken 1174 | . 450 290 434 Core 250 | . 119 47 84 Absorbed by Shields . | . . . . Core Remaining (%) 100 | 100 . . . Volleys Fired 60 | . 33 19 8 Largest 2 | . 2 2 2 Hottest 120 | . 40 53 120 Shots Fired 105 | . 66 29 10 Gun 102 | . 66 28 8 Cannon . | . . . . Launcher 1 | . . 1 . Special 2 | . . . 2 Kinetic 102 | . 66 28 8 Thermal 2 | . . . 2 Explosive 1 | . . 1 . Electromagnetic . | . . . . Robot Hit Streak 9 | . 7 9 8 Robot Miss Streak 4 | . 3 4 1 Penetration Max . | . . . . Secondary Targets 3 | . 3 . . Max Gunslinging Chain 1 | . 1 . . Shots Hit Robots 54 | . 34 12 8 Core Hits 22 | . 14 6 2 Critical Kills . | . . . . Critical Parts Destroyed . | . . . . Critical Strikes . | . . . . Melee Attacks . | . . . . Impact . | . . . . Slashing . | . . . . Piercing . | . . . . Sneak Attacks . | . . . . Combat Hostiles . | . . . . Follow-up Attacks . | . . . . Damage Inflicted 647 | . 378 187 82 Guns 572 | . 378 134 60 Cannons . | . . . . Explosions 53 | . . 53 . Melee . | . . . . Ramming . | . . . . Kinetic 572 | . 378 134 60 Thermal 22 | . . . 22 Explosive 53 | . . 53 . Electromagnetic . | . . . . Impact . | . . . . Slashing . | . . . . Piercing . | . . . . Highest Corruption . | . . . . Average Corruption . | . . . . Corruption Purged . | . . . . Corruption Blocked . | . . . . Overload Shots . | . . . . Overflow Damage 4 | . . 4 . Projectiles . | . . . . Explosions 4 | . . 4 . Melee . | . . . . Knockbacks . | . . . . Impact . | . . . . Kinetic . | . . . . Secondary . | . . . . Self-Inflicted Damage 51 | . . 51 . Shots 1 | . . 1 . Rammed . | . . . . Targets Rammed . | . . . . Kicked . | . . . . Crushed . | . . . . Highest Temperature 33 | . 33 10 24 Average Temperature 12 | . 16 4 14 Received Heat Transfer 339 | . 225 42 72 Siege Activations . | . . . . Robots Corrupted . | . . . . Combat Hostiles . | . . . . Parts Fried . | . . . . Impact Corruptions . | . . . . Robots Melted . | . . . . Combat Hostiles . | . . . . Parts Melted . | . . . . Heat Transferred 160 | . . . 160 Parts Sabotaged . | . . . . Parts Stolen . | . . . . Parts Stripped . | . . . . Power Chain Reactions . | . . . . Alert | -11 -10 -10 -10 ------- Run | Yrd Mat Min Sub Peak Influence 204 | . 204 146 . Initial 7 | . . 7 . Average 61 | . 86 52 . Maximum Alert Level 1 | . 1 . . Low Security (%) 97 | 100 92 100 . Level 1 2 | . 7 . . Level 2 . | . . . . Level 3 . | . . . . Level 4 . | . . . . Level 5 . | . . . . High Security . | . . . . Max Security . | . . . . Squads Dispatched 1 | . . 1 . Investigation 1 | . . 1 . Extermination . | . . . . Reinforcement . | . . . . Assault . | . . . . Garrison . | . . . . Intercept . | . . . . Searches Triggered . | . . . . Construction Impeded . | . . . . Haulers Reinforced . | . . . . Active Scanning Responses . | . . . . Cargo Convoy Interrupts . | . . . . Stealth | -11 -10 -10 -10 --------- Run | Yrd Mat Min Sub Distress Signals 1 | . . 1 . Communications Jammed . | . . . . Distress Signals . | . . . . Times Spotted 30 | . 14 8 8 Peak Tracking Total 5 | . 4 3 5 Tactical Retreats 1 | . . 1 . Traps | -11 -10 -10 -10 ------- Run | Yrd Mat Min Sub Traps Triggered . | . . . . Indirectly . | . . . . Trap Hack Attempts . | . . . . Triggered . | . . . . Disarmed . | . . . . Reprogrammed . | . . . . Reused . | . . . . Traps Extracted . | . . . . Installed . | . . . . Triggered . | . . . . Machines | -11 -10 -10 -10 ---------- Run | Yrd Mat Min Sub Machines Disabled 1 | . . 1 . Max in Single Turn 1 | . . 1 . Machines Repaired . | . . . . Machines Dismantled . | . . . . Machines Sabotaged . | . . . . Overloaded Fab Kills . | . . . . Hacking | -11 -10 -10 -10 --------- Run | Yrd Mat Min Sub Machines Accessed 5 | . 3 2 . Terminals 5 | . 3 2 . Fabricators . | . . . . Repair Stations . | . . . . Recycling Units . | . . . . Scanalyzers . | . . . . Garrison Access . | . . . . Total Hacks 16 | . 11 5 . Successful 6 | . 3 3 . Failed 10 | . 8 2 . Catastrophic 1 | . 1 . . Database Lockouts . | . . . . Manual 8 | . 5 3 . Terminals 16 | . 11 5 . Fabricators . | . . . . Repair Stations . | . . . . Recycling Units . | . . . . Scanalyzers . | . . . . Garrison Access . | . . . . Terminal Hacks 3 | . 2 1 . Branch Access Points 1 | . 1 . . Locate Traps 1 | . 1 . . Patrol Status 1 | . . 1 . Fabricator Hacks . | . . . . Repair Station Hacks . | . . . . Recycling Unit Hacks . | . . . . Scanalyzer . | . . . . Garrison Access Hacks . | . . . . Unauthorized Hacks 3 | . 1 2 . Terminals 3 | . 1 2 . Track 2 | . . 2 . Operators 1 | . 1 . . Fabricators . | . . . . Repair Stations . | . . . . Recycling Units . | . . . . Scanalyzers . | . . . . Garrison Access . | . . . . Data Cores Recovered . | . . . . Used . | . . . . Hacking Detections 5 | . 3 2 . Full Trace Events 2 | . 1 1 . Feedback Events . | . . . . Feedback Blocked . | . . . . Robot Schematics Acquired . | . . . . Robots Built . | . . . . Authchips . | . . . . Time . | . . . . Total Robot Build Rating . | . . . . Part Schematics Acquired . | . . . . Parts Built . | . . . . Authchips . | . . . . Time . | . . . . Total Part Build Rating . | . . . . Parts Repaired . | . . . . Time . | . . . . Parts Recycled . | . . . . Recycled Matter . | . . . . Retrieved Matter . | . . . . Retrieved Components . | . . . . Parts Scanalyzed . | . . . . Part Schematics Acquired . | . . . . Parts Damaged . | . . . . Bothacking | -11 -10 -10 -10 ------------ Run | Yrd Mat Min Sub Used RIF Installer . | . . . . Robots Hacked . | . . . . Non-combat . | . . . . Combat . | . . . . Robot Hacks Applied . | . . . . Relay Couplers Released . | . . . . Fabnet Peak Effective % . | . . . . Robots Rewired . | . . . . Allies Hacked . | . . . . Hacks Repelled . | . . . . Allies | -11 -10 -10 -10 -------- Run | Yrd Mat Min Sub Total Allies 1 | . . 1 . Largest Group 1 | . . 1 . Highest-Rated Group 31 | . . 31 . Highest-Rated Ally 31 | . . 31 . Total Orders . | . . . . Ally Attacks 10 | . . 10 . Total Damage 130 | . . 130 . Kills 3 | . . 3 . Allies Corrupted . | . . . . Allies Melted . | . . . . Intel | -11 -10 -10 -10 ------- Run | Yrd Mat Min Sub Robot Analysis Total . | . . . . Derelict Logs Recovered 2 | . . 1 1 Drone Launches . | . . . . Drone Recoveries . | . . . . Exploration | -11 -10 -10 -10 ------------- Run | Yrd Mat Min Sub Turns Passed 1620 | 67 451 798 304 Spaces Moved 1107 | 42 278 597 190 Core 15 | 15 . . . Treads . | . . . . Legs 1092 | 27 278 597 190 Wheels . | . . . . Hover . | . . . . Flight . | . . . . Fastest Speed 50 | 50 120 120 120 Average Speed 123 | 125 120 120 141 Slowest Speed 200 | 200 120 120 190 Overloaded Moves . | . . . . Propulsion Burnouts . | . . . . Robots Hopped . | . . . . Cave-ins Triggered . | . . . . Exploration Rate (%) 41 | 3 56 96 12 Regions Visited 3 Branch Regions 2 Pre-discovered Areas . | . . . . Known Exits Taken 1 | . 1 . . Unknown Exits Taken 2 | 1 . 1 . Scrap Searched 2 | . . 1 1 Spaces Dug . | . . . . Terrain Destroyed 11 | . . 11 . Melee . | . . . . Projectile . | . . . . AOE 11 | . . 11 . Terrain Rammed . | . . . . Walls Destroyed . | . . . . Machines Disabled . | . . . . Actions | -11 -10 -10 -10 --------- Run | Yrd Mat Min Sub Total 1261 | 53 337 654 217 Wait 41 | . 4 29 8 Move 1104 | 41 277 596 190 Hop . | . . . . Pick Up 12 | 6 4 2 . Fast Attach 11 | 6 2 1 2 Attach 5 | . . 2 3 Detach 3 | . 1 1 1 Swap 9 | . 8 1 . Drop 15 | . 8 3 4 Fire 60 | . 33 19 8 Melee . | . . . . Ram . | . . . . Kick . | . . . . Crush . | . . . . Escape Stasis . | . . . . Rewire . | . . . . Trap . | . . . . Miscellaneous 1 | . . . 1 Route ------- -11/Scrapyard -10/Materials (discovered 4 exits: [*Mat x2] / *Min x2) -10/Mines (discovered 3 exits: [*Mat x2] / [*Sub]) -10/Subcaves History --------- Turn | Location | Event 12 | -11/Scrapyard | Discovered new exit (range 14) 68 | -11/Scrapyard | Entered Materials 167 | -10/Materials | Identified exit to Mines 309 | -10/Materials | Build established: Mutant 390 | -10/Materials | Discovered new exit (range 7) 484 | -10/Materials | Discovered new exit (range 14) 519 | -10/Materials | Entered Mines 847 | -10/Mines | Discovered new exit (range 10) 853 | -10/Mines | Learned Materials stockpile data 900 | -10/Mines | Core integrity fell below 50% 914 | -10/Mines | Assembled infested the area 967 | -10/Mines | Received a Rocket Launcher from a helpful Derelict 995 | -10/Mines | Received a Mining Laser from a helpful Derelict 1074 | -10/Mines | Discovered new exit (range 4) 1313 | -10/Mines | Discovered new exit (range 4) 1317 | -10/Mines | Entered Subcaves 1329 | -10/Subcaves | Learned Materials terminal intel 1449 | -10/Subcaves | Disturbed a concealed Subdweller 1599 | -10/Subcaves | Ambushed by swarm of Subdwellers 1614 | -10/Subcaves | Core integrity fell below 20% 1621 | -10/Subcaves | Destroyed by 56-N9E(R) with Subdweller Laser Last Messages --------------- 01501_ Dropped Sml. Storage Unit. 01502_ Acquired Scrap Shield. 01549_ Acquired 38 matter. 01554_ Acquired 2 matter. A mess of Twisted Machinery falls from the cavern ceiling. QE-I3J(R) comes tumbling into view. 01599_ A6-84Z(h): "The Subs are coming!" 01601_ VF-MKJ(g): "Sorry we're late! Had another grouchy Sub to deal with. Who's the new fellow?" 01606_ A6-84Z(h) destroyed. 01610_ VF-MKJ(g) destroyed. 01610_ EW-VI0(R) destroyed. 01612_ SL-7DS(g) destroyed. 01614_ Flamer destroyed. 01614_ MV-NE9(g) destroyed. 01614_ Critical hit (Destroy). 01619_ Scrap Shield Fragment affixed to Scrap Shield (+31). Map ----- +----------------------------------------------------+ | ####### #??## #?? #????????????????????? | | # #?## #????#????????????????????? | | #### ##????????????????????????? | | # # # #????????????????????????? | | # ## #????????????????????????? | | # ## #???????????????????????? | | # ###?# #??????????????????????? | | # # ##???####??????????????????????? | | ## ## # #?????????????????????????????? | | ?## ### # #?????????????????????????????? | | ??#######?# # ##??####???????????????????????? | | ??????????# # #?## #???????????????????????? | | ??????????## ### #???????????????????????? | | ??????####### #????????????????????????? | | ??????#"&=##" ##????????????????????????? | | ??????# # # ##????????????????????????? | | ??????# !#"#" ## #????????????????????????? | | ??????#&]### ## ###??????????????????????? | | ??????#"%## # ;; ###???????? #??????????? | | ??????##### ! ;;;#??????? ##?????????? | | ????????## % ##???? #?????????? | | ????????# ]%== ##?? ?????????? | | ???""" ## % ## ??????????? | | ???""## #?### [ % #?????????????? | | ??????# ????# ##?????????????? | | ??????# ????## @* ###??????????????? | | ??????## ??????# R % #????????????????? | | ???????# ??????## R ;!! #?????????????? | | ???????#????????# R ## ##?????????????? | | ????????????? ##?# ##??????????????? | | ??????????? R R#???####???????????????? | | ??????????? &%!#?????????????????????? | | ??????????? ##" #?????????????????????? | | ??????????? ### #%"" #?????????????????????? | | ???????????? #??# #### #?????????????????????? | | ???????????? #??? #???##?????????????????????? | | ?????????????????# ##??????????????????????????? | | ?????????????????# ????????????????????????????? | | ?????????????????# ?????????????????????????????? | | ?????????????????????????????????????????????????? | | ?????????????????????????????????????????????????? | | ?????????????????????????????????????????????????? | | ?????????????????????????????????????????????????? | | ?????????????????????????????????????????????????? | | ?????????????????????????????????????????????????? | | ?????????????????????????????????????????????????? | | ?????????????????????????????????????????????????? | | ?????????????????????????????????????????????????? | | ?????????????????????????????????????????????????? | | ?????????????????????????????????????????????????? | +----------------------------------------------------+ Best States ------------- Heat Dissipation 25 Energy Generation 14 Energy Capacity 160 Matter Stores 300 Matter Capacity 300 Sight Range 18 Robot Scan Range 14 Terrain Scan Density 10 Armor Coverage 800 Evasion (%) 55 Item Schematics ----------------- None Robot Schematics ------------------ None Fabricated ------------ Nothing Alien Tech Used ----------------- None Achievements -------------- None Challenges ------------ None Game ------ Seed CompactBurstLauncher Manual? 0 Play Time 00:25:36 Cumulative 17.0 hours Start 2024.05.22 @ 17:53:11 End 2024.05.22 @ 18:17:42 Sessions 1 Manual Loads 0 Difficulty Rogue Special Mode None Game No. 13 Rogue 13 Adventurer 0 Explorer 0 Win Type - Total 0 Types 0/0/0/0/0/0/0/0/0 Lore% 18 Gallery% 22 Achievement% 17 Wizard Run 0 Options --------- Layout 1 ASCII 0 Keyboard 1 Movement Numpad Keybinds 0 Fullscreen 1 Font 32/Cog Map View 50x35 Zoom Use 0% Tactical HUD 1 Map Filters NONE Filters NONE Steam 1 RUN: 13a45b66-3317-4e78-a65a-377ab51786a6